{"text_format":"3","workbook":"xlsx","n_sheets":26,"sheets":["Start","1","2","3","4","5","6","7","8","9","10","11","12","13","14","15","16","17","18","19","20","21","22","23","24","Få mere at vide"],"not_rendered":{"images":24,"defined_names":5,"pivot_tables":19},"read":"whole","date_system":"1900"}

{"sheet":"Start","index":0,"n_rows":5,"n_cols":1,"rows_kept":5}
["Velkommen\nVejledning til skærmlæsere: Få mere ud af pivottabeller. En enkel pivottabel giver dig en overordnet opsummering af dine data, men nogle gange har du brug for detaljerede svar på bestemte spørgsmål. Det er der, hvor det kan hjælpe at indsætte flere kolonnefelter og rækkefelter. \nVejledningen angiver, hvilke celler der skal gås til for at bruge en funktion eller for yderligere læsning.\nTryk på Ctrl+Page Down for at begynde."]
["Få mere ud af pivottabeller"]
["En enkel pivottabel giver dig en overordnet opsummering af dine data,\nmen nogle gange har du brug for detaljerede svar på bestemte spørgsmål.\nDet er der, hvor det kan hjælpe at indsætte flere kolonnefelter og rækkefelter."]
["VÆRD AT VIDE\nTog du det første selvstudium? Hvis ikke, skal du gå til Filer > Ny og lede efter Lav din første pivottabel."]
["Gå tilbage til toppen ved at trykke på Ctrl+Home. Tryk på Ctrl+Page Down for at begynde rundvisningen."]

{"sheet":"1","index":1,"n_rows":16,"n_cols":9,"rows_kept":16}
["I det første selvstudium gjorde vi dig bekendt med, hvad en pivottabel er. Vi forklarede også, hvordan et rækkefelt kan bruges som en betingelse, der opdeler et værdifelt.   "]
["Cellerne H10 til I14 indeholder en pivottabel, der opsummerer dataene i cellerne B8 til E16. Pivottabel har to kolonner: Køber og Sum af Beløb. Kolonnen Køber indeholder værdierne Far, Mor, Kelly og Hovedtotal. Kolonnen Sum af Beløb indeholder værdierne kr. 220, kr. 270, kr. 810 og kr. 1.300. Kolonnen Køber består af et rækkefelt, og kolonnen Sum af Beløbbestår af et værdifelt."]
["Hvis du vil fortsætte med dette selvstudium, skal du trykke på Ctrl+Page Down. Tryk på Ctrl+Page Up for at gå til det forrige ark."]
[]
[]
[]
[]
[null,"Dato","Køber","Type","Beløb"]
["Dette eksempel viser, hvordan rækkefeltet...","2017-01-01","Far","Gaver",{"v":95,"d":"kr. 95"}]
["...opdeler værdifeltet.","2017-01-15","Mor","Mad",{"v":325,"d":"kr. 325"},null,null,"Køber","Sum af Beløb"]
[null,"2017-01-17","Mor","Billetter",{"v":250,"d":"kr. 250"},null,null,"Far",{"v":220,"d":"kr. 220"}]
[null,"2017-01-21","Far","Mad",{"v":125,"d":"kr. 125"},null,null,"Kelly",{"v":270,"d":"kr. 270"}]
[null,"2017-02-02","Mor","Mad",{"v":235,"d":"kr. 235"},null,null,"Mor",{"v":810,"d":"kr. 810"}]
[null,"2017-02-20","Kelly","Musik",{"v":20,"d":"kr. 20"},null,null,"Hovedtotal",{"v":1300,"d":"kr. 1,300"}]
[null,"2017-02-25","Kelly","Billetter",{"v":125,"d":"kr. 125"}]
[null,"2017-02-25","Kelly","Sport",{"v":125,"d":"kr. 125"}]

{"sheet":"2","index":2,"n_rows":108,"n_cols":7,"rows_kept":108}
["Men når først du kigger på en pivottabel, tænker du måske, at du har brug for at få flere svar ud af den."]
["Når først du kigger på en pivottabel, får du måske lyst til at stille spørgsmål, såsom \"Hvornår blev købene foretaget?\", \"Hvad brugte hver person penge på?\", \"Hvad købte mor, der var så dyrt?\"."]
["I dette eksempel viser cellerne F11 til G15 de samme to pivottabel som før. Kolonnen Køber er et rækkefelt og indeholder værdierne Far, Mor, Kelly og Hovedtotal. Kolonnen Sum af Beløb er et værdifelt og indeholder værdierne kr. 220, kr. 270, kr. 810 og kr. 1.300. "]
["Hvis du vil fortsætte med dette selvstudium, skal du trykke på Ctrl+Page Down. Tryk på Ctrl+Page Up for at gå til det forrige ark."]
[]
[]
[]
[]
[]
[]
[{"$nulls":5},"Køber","Sum af Beløb"]
[{"$nulls":5},"Far",{"v":220,"d":"kr. 220"}]
[{"$nulls":5},"Kelly",{"v":270,"d":"kr. 270"}]
[{"$nulls":5},"Mor",{"v":810,"d":"kr. 810"}]
[{"$nulls":5},"Hovedtotal",{"v":1300,"d":"kr. 1,300"}]
{"$rows_empty":84}
[null,"Dato","Køber","Type","Beløb"]
[null,"2017-01-01","Far","Gaver",{"v":95,"d":"kr. 95"}]
[null,"2017-01-15","Mor","Mad",{"v":325,"d":"kr. 325"}]
[null,"2017-01-17","Mor","Billetter",{"v":250,"d":"kr. 250"}]
[null,"2017-01-21","Far","Mad",{"v":125,"d":"kr. 125"}]
[null,"2017-02-02","Mor","Mad",{"v":235,"d":"kr. 235"}]
[null,"2017-02-20","Kelly","Musik",{"v":20,"d":"kr. 20"}]
[null,"2017-02-25","Kelly","Billetter",{"v":125,"d":"kr. 125"}]
[null,"2017-02-25","Kelly","Sport",{"v":125,"d":"kr. 125"}]

{"sheet":"3","index":3,"n_rows":108,"n_cols":7,"rows_kept":108}
["De er alle sammen gode spørgsmål, men lad os starte med at fokusere på bare ét spørgsmål."]
["Hvad brugte hver person penge på?"]
["I øvrigt viser cellerne F11 til G15 de samme to pivottabel som før. Kolonnen Køber er et rækkefelt og indeholder værdierne Far, Mor, Kelly og Hovedtotal. Kolonnen Sum af Beløb er et værdifelt og indeholder værdifeltet kr. 220, kr. 270, kr. 810 og kr. 1.300. "]
["Hvis du vil fortsætte med dette selvstudium, skal du trykke på Ctrl+Page Down. Tryk på Ctrl+Page Up for at gå til det forrige ark."]
[]
[]
[]
[]
[]
[]
[{"$nulls":5},"Køber","Sum af Beløb"]
[{"$nulls":5},"Far",{"v":220,"d":"kr. 220"}]
[{"$nulls":5},"Kelly",{"v":270,"d":"kr. 270"}]
[{"$nulls":5},"Mor",{"v":810,"d":"kr. 810"}]
[{"$nulls":5},"Hovedtotal",{"v":1300,"d":"kr. 1,300"}]
{"$rows_empty":84}
[null,"Dato","Køber","Type","Beløb"]
[null,"2017-01-01","Far","Gaver",{"v":95,"d":"kr. 95"}]
[null,"2017-01-15","Mor","Mad",{"v":325,"d":"kr. 325"}]
[null,"2017-01-17","Mor","Billetter",{"v":250,"d":"kr. 250"}]
[null,"2017-01-21","Far","Mad",{"v":125,"d":"kr. 125"}]
[null,"2017-02-02","Mor","Mad",{"v":235,"d":"kr. 235"}]
[null,"2017-02-20","Kelly","Musik",{"v":20,"d":"kr. 20"}]
[null,"2017-02-25","Kelly","Billetter",{"v":125,"d":"kr. 125"}]
[null,"2017-02-25","Kelly","Sport",{"v":125,"d":"kr. 125"}]

{"sheet":"4","index":4,"n_rows":108,"n_cols":9,"rows_kept":108}
["Det sidste spørgsmål, vi stillede var \"Hvad brugte hver person penge på?\""]
["Vi besvarede spørgsmålet ved at tilføje et kolonnefelt for Type. Derfor har pivottabel nu fem nye kolonner, der viser os købstypen for hver enkelt person. "]
["Vores nye pivottabel går nu fra celle C10 til I15 med kolonner til Køber, Mad, Musik, Sport, Billetter, Gaver og Hovedtotal. Køber og Hovedtotal er de samme som før, og de nye oplysningskolonner ligger mellem dem."]
["Hvis du vil fortsætte med dette selvstudium, skal du trykke på Ctrl+Page Down. Tryk på Ctrl+Page Up for at gå til det forrige ark."]
[]
[]
[]
[]
[]
[null,null,"Sum af Beløb","Type"]
[null,null,"Køber","Mad","Musik","Sport","Billetter","Gaver","Hovedtotal"]
[null,null,"Far",{"v":125,"d":"kr. 125"},{"$nulls":3},{"v":95,"d":"kr. 95"},{"v":220,"d":"kr. 220"}]
[null,null,"Kelly",null,{"v":20,"d":"kr. 20"},{"v":125,"d":"kr. 125"},{"v":125,"d":"kr. 125"},null,{"v":270,"d":"kr. 270"}]
[null,null,"Mor",{"v":560,"d":"kr. 560"},null,null,{"v":250,"d":"kr. 250"},null,{"v":810,"d":"kr. 810"}]
[null,null,"Hovedtotal",{"v":685,"d":"kr. 685"},{"v":20,"d":"kr. 20"},{"v":125,"d":"kr. 125"},{"v":375,"d":"kr. 375"},{"v":95,"d":"kr. 95"},{"v":1300,"d":"kr. 1,300"}]
{"$rows_empty":84}
[null,"Dato","Køber","Type","Beløb"]
[null,"2017-01-01","Far","Gaver",{"v":95,"d":"kr. 95"}]
[null,"2017-01-15","Mor","Mad",{"v":325,"d":"kr. 325"}]
[null,"2017-01-17","Mor","Billetter",{"v":250,"d":"kr. 250"}]
[null,"2017-01-21","Far","Mad",{"v":125,"d":"kr. 125"}]
[null,"2017-02-02","Mor","Mad",{"v":235,"d":"kr. 235"}]
[null,"2017-02-20","Kelly","Musik",{"v":20,"d":"kr. 20"}]
[null,"2017-02-25","Kelly","Billetter",{"v":125,"d":"kr. 125"}]
[null,"2017-02-25","Kelly","Sport",{"v":125,"d":"kr. 125"}]

{"sheet":"5","index":5,"n_rows":108,"n_cols":9,"rows_kept":108}
["Hvis pivottabel er svær at forstå, kan du prøve følgende: Læs fra venstre, derefter fra toppen og så nedad. I eksemplet nedenfor er Far i celle C12, Mad for kr. 125 i celle D12, Gaver kr. 95 i celle E12 og en Hovedtotal på kr. 220 i celle I12. Rækkerne 13 og 14 viser oplysninger om Kelly og Mor, og række 15 viser Hovedtotalen."]
["Hvis du vil fortsætte med dette selvstudium, skal du trykke på Ctrl+Page Down. Tryk på Ctrl+Page Up for at gå til det forrige ark."]
{"$rows_empty":7}
[null,null,"Sum af Beløb","Type"]
[null,null,"Køber","Mad","Gaver","Musik","Sport","Billetter","Hovedtotal"]
[null,null,"Far",{"v":125,"d":"kr. 125"},{"v":95,"d":"kr. 95"},{"$nulls":3},{"v":220,"d":"kr. 220"}]
[null,null,"Kelly",null,null,{"v":20,"d":"kr. 20"},{"v":125,"d":"kr. 125"},{"v":125,"d":"kr. 125"},{"v":270,"d":"kr. 270"}]
[null,null,"Mor",{"v":560,"d":"kr. 560"},{"$nulls":3},{"v":250,"d":"kr. 250"},{"v":810,"d":"kr. 810"}]
[null,null,"Hovedtotal",{"v":685,"d":"kr. 685"},{"v":95,"d":"kr. 95"},{"v":20,"d":"kr. 20"},{"v":125,"d":"kr. 125"},{"v":375,"d":"kr. 375"},{"v":1300,"d":"kr. 1,300"}]
{"$rows_empty":84}
[null,"Dato","Køber","Type","Beløb"]
[null,"2017-01-01","Far","Gaver",{"v":95,"d":"kr. 95"}]
[null,"2017-01-15","Mor","Mad",{"v":325,"d":"kr. 325"}]
[null,"2017-01-17","Mor","Billetter",{"v":250,"d":"kr. 250"}]
[null,"2017-01-21","Far","Mad",{"v":125,"d":"kr. 125"}]
[null,"2017-02-02","Mor","Mad",{"v":235,"d":"kr. 235"}]
[null,"2017-02-20","Kelly","Musik",{"v":20,"d":"kr. 20"}]
[null,"2017-02-25","Kelly","Billetter",{"v":125,"d":"kr. 125"}]
[null,"2017-02-25","Kelly","Sport",{"v":125,"d":"kr. 125"}]

{"sheet":"6","index":6,"n_rows":3,"n_cols":1,"rows_kept":3}
["Gør ikke dette nu, men om nogle få skridt kommer du til arbejde med en pivottabel. Det første, du skal gøre, er at oprette oplysninger i kolonner. Det gør du ved at placere feltet Type i kolonner."]
["Et billede af listen Pivottabelfelter viser en pilemarkør, der trækker feltet Type til området Kolonner."]
["Hvis du vil fortsætte med dette selvstudium, skal du trykke på Ctrl+Page Down. Tryk på Ctrl+Page Up for at gå til det forrige ark."]

{"sheet":"7","index":7,"n_rows":108,"n_cols":8,"rows_kept":108}
["1. Pivottabelområdet i dette eksempel er i cellerne B13 til C17. Gå til en af disse celler."]
["2. Tryk på ALT + JN, E for at åbne listen Pivottabelfelter. Som standard rettes fokus mod tekstfeltet Søg: \"Søg\" efter redigering"]
["3. Tryk på piletasterne for at vælge feltet Type. Når du har valgt det, skal du trykke på mellemrumstasten for at føje feltet Type til rækker. "]
["4. Tryk på tabulatortasten for at vælge feltet Type. Tryk på ENTER, og tryk derefter på piletasterne for at vælge Flyt til kolonnemeærkater, og tryk på ENTER for at tilføje feltet Type i området Kolonner. Tryk på ALT+JN+E for at afslutte ruden Pivottabelfelter."]
["Hvis du vil fortsætte med dette selvstudium, skal du trykke på CTRL+PAGE DOWN. Tryk på Ctrl+Page Up for at gå til det forrige ark."]
[]
[]
[]
[{"$nulls":7},{"$f":"IF(AND($B$14=\"Køber\",$H$17=810),\"Godt arbejde! Du har placeret\",\" \")","v":" "}]
[{"$nulls":7},{"$f":"IF(AND($B$14=\"Køber\",$H$17=810),\"dit første kolonnefelt. Klik\",\" \")","v":" "}]
[{"$nulls":7},{"$f":"IF(AND($B$14=\"Køber\",$H$17=810),\"på Næste for at fortsætte...\",\" \")","v":" "}]
[]
[null,"Køber","Sum af Beløb"]
[null,"Far",{"v":220,"d":"kr. 220"}]
[null,"Kelly",{"v":270,"d":"kr. 270"}]
[null,"Mor",{"v":810,"d":"kr. 810"}]
[null,"Hovedtotal",{"v":1300,"d":"kr. 1,300"}]
{"$rows_empty":82}
[null,"Dato","Køber","Type","Beløb"]
[null,"2017-01-01","Far","Gaver",{"v":95,"d":"kr. 95"}]
[null,"2017-01-15","Mor","Mad",{"v":325,"d":"kr. 325"}]
[null,"2017-01-17","Mor","Billetter",{"v":250,"d":"kr. 250"}]
[null,"2017-01-21","Far","Mad",{"v":125,"d":"kr. 125"}]
[null,"2017-02-02","Mor","Mad",{"v":235,"d":"kr. 235"}]
[null,"2017-02-20","Kelly","Musik",{"v":20,"d":"kr. 20"}]
[null,"2017-02-25","Kelly","Billetter",{"v":125,"d":"kr. 125"}]
[null,"2017-02-25","Kelly","Sport",{"v":125,"d":"kr. 125"}]

{"sheet":"8","index":8,"n_rows":108,"n_cols":9,"rows_kept":108}
["Lad os gennemgå den pivottabel, du lige har oprettet, men denne gang har vi tilføjet nogle særlige farver for lettere at skelne mellem række-, kolonne- og værdifelter."]
["Rækkefeltet går fra celle C10 til C13 og har en gul skyggefarve."]
["Kolonnefeltet går fra celle D9 til H10 og har en orange skyggefarve."]
["Værdifeltet går fra celle D11 til H13 og har en blå skyggefarve."]
["Hvis du vil fortsætte med dette selvstudium, skal du trykke på Ctrl+Page Down. Tryk på Ctrl+Page Up for at gå til det forrige ark."]
[]
[]
[]
[null,null,"Sum af Beløb","Type"]
[null,null,"Køber","Mad","Gaver","Musik","Sport","Billetter","Hovedtotal"]
[null,null,"Far",{"v":125,"d":"kr. 125"},{"v":95,"d":"kr. 95"},{"$nulls":3},{"v":220,"d":"kr. 220"}]
[null,null,"Kelly",null,null,{"v":20,"d":"kr. 20"},{"v":125,"d":"kr. 125"},{"v":125,"d":"kr. 125"},{"v":270,"d":"kr. 270"}]
[null,null,"Mor",{"v":560,"d":"kr. 560"},{"$nulls":3},{"v":250,"d":"kr. 250"},{"v":810,"d":"kr. 810"}]
[null,null,"Hovedtotal",{"v":685,"d":"kr. 685"},{"v":95,"d":"kr. 95"},{"v":20,"d":"kr. 20"},{"v":125,"d":"kr. 125"},{"v":375,"d":"kr. 375"},{"v":1300,"d":"kr. 1,300"}]
{"$rows_empty":85}
[null,"Dato","Køber","Type","Beløb"]
[null,"2017-01-01","Far","Gaver",{"v":95,"d":"kr. 95"}]
[null,"2017-01-15","Mor","Mad",{"v":325,"d":"kr. 325"}]
[null,"2017-01-17","Mor","Billetter",{"v":250,"d":"kr. 250"}]
[null,"2017-01-21","Far","Mad",{"v":125,"d":"kr. 125"}]
[null,"2017-02-02","Mor","Mad",{"v":235,"d":"kr. 235"}]
[null,"2017-02-20","Kelly","Musik",{"v":20,"d":"kr. 20"}]
[null,"2017-02-25","Kelly","Billetter",{"v":125,"d":"kr. 125"}]
[null,"2017-02-25","Kelly","Sport",{"v":125,"d":"kr. 125"}]

{"sheet":"9","index":9,"n_rows":3,"n_cols":1,"rows_kept":3}
["Her er en anden måde at betragte det på: Rækkefeltet er til venstre, og kolonnefelt er øverst. De angiver begge en betingelse for værdifeltet, der opsummerer dem."]
["Et konceptbillede viser et rektangulært område i fire sektioner med rækkefelt nederst til venstre i gult, kolonnefeltet øverst til højre i orange og værdifeltet nederst til højre i blåt."]
["Hvis du vil fortsætte med dette selvstudium, skal du trykke på Ctrl+Page Down. Tryk på Ctrl+Page Up for at gå til det forrige ark."]

{"sheet":"10","index":10,"n_rows":3,"n_cols":1,"rows_kept":3}
["Se det på den måde, når du bruger feltlisten. Rækkefelt er til venstre, og kolonnefelt er øverst. De angiver begge en betingelse for værdifeltet, der opsummerer dem."]
["Et konceptbillede, der viser en pivottabelfelter, som vises med rækkefelt nederst til venstre i gult, kolonnefeltet øverst til højre i orange og værdifeltet nederst til højre i blåt."]
["Hvis du vil fortsætte med dette selvstudium, skal du trykke på Ctrl+Page Down. Tryk på Ctrl+Page Up for at gå til det forrige ark."]

{"sheet":"11","index":11,"n_rows":121,"n_cols":24,"rows_kept":121}
["Én ting, du skal være opmærksom på: Hvis et kolonnefelt føjer mange kolonner til en pivottabel, kan det gøre den meget bred. "]
["I dette eksempel går pivottabel nu fra celle C10 til X15, fordi kolonnefelt tilføjede 20 nye kolonner. Det er mange kolonner! Det betyder, at folk er nødt til at rulle meget..."]
["Hvis du vil fortsætte med dette selvstudium, skal du trykke på Ctrl+Page Down. Tryk på Ctrl+Page Up for at gå til det forrige ark."]
[]
[]
[]
[]
[]
[]
[null,null,"Sum af Beløb","Type"]
[null,null,"Køber","Bilforsikring","Billetter","Brændstof","Bøger","El","Elektronik","Flybilletter","Indboforsikring","Klubkontingent","Mad","Moms","Musik","Musikundervisning","Parkering","Restaurant","Sport","Sundhed","Sygeforsikring","Tandlæge","Tøj","Hovedtotal"]
[null,null,"Far",{"$nulls":6},{"v":500,"d":"kr. 500"},{"$nulls":3},{"v":500,"d":"kr. 500"},{"$nulls":4},{"v":1000,"d":"kr. 1,000"},{"$nulls":4},{"v":2000,"d":"kr. 2,000"}]
[null,null,"Kelly",null,{"v":125,"d":"kr. 125"},null,{"v":250,"d":"kr. 250"},null,{"v":125,"d":"kr. 125"},{"$nulls":5},{"v":20,"d":"kr. 20"},{"v":250,"d":"kr. 250"},{"v":20,"d":"kr. 20"},{"v":20,"d":"kr. 20"},{"$nulls":4},{"v":125,"d":"kr. 125"},{"v":935,"d":"kr. 935"}]
[null,null,"Mor",{"v":74,"d":"kr. 74"},null,{"v":74,"d":"kr. 74"},null,{"v":70,"d":"kr. 70"},null,null,{"v":235,"d":"kr. 235"},{"v":125,"d":"kr. 125"},{"v":470,"d":"kr. 470"},{"$nulls":6},{"v":74,"d":"kr. 74"},{"v":70,"d":"kr. 70"},{"v":235,"d":"kr. 235"},null,{"v":1427,"d":"kr. 1,427"}]
[null,null,"Hovedtotal",{"v":74,"d":"kr. 74"},{"v":125,"d":"kr. 125"},{"v":74,"d":"kr. 74"},{"v":250,"d":"kr. 250"},{"v":70,"d":"kr. 70"},{"v":125,"d":"kr. 125"},{"v":500,"d":"kr. 500"},{"v":235,"d":"kr. 235"},{"v":125,"d":"kr. 125"},{"v":470,"d":"kr. 470"},{"v":500,"d":"kr. 500"},{"v":20,"d":"kr. 20"},{"v":250,"d":"kr. 250"},{"v":20,"d":"kr. 20"},{"v":20,"d":"kr. 20"},{"v":1000,"d":"kr. 1,000"},{"v":74,"d":"kr. 74"},{"v":70,"d":"kr. 70"},{"v":235,"d":"kr. 235"},{"v":125,"d":"kr. 125"},{"v":4362,"d":"kr. 4,362"}]
{"$rows_empty":84}
[null,"Dato","Køber","Type","Beløb"]
[null,"2017-01-17","Far","Sport",{"v":1000,"d":"kr. 1,000"}]
[null,"2017-01-17","Far","Flybilletter",{"v":500,"d":"kr. 500"}]
[null,"2017-01-17","Far","Moms",{"v":500,"d":"kr. 500"}]
[null,"2017-02-20","Kelly","Musik",{"v":20,"d":"kr. 20"}]
[null,"2017-02-25","Kelly","Billetter",{"v":125,"d":"kr. 125"}]
[null,"2017-01-21","Kelly","Bøger",{"v":250,"d":"kr. 250"}]
[null,"2017-02-20","Kelly","Restaurant",{"v":20,"d":"kr. 20"}]
[null,"2017-02-25","Kelly","Tøj",{"v":125,"d":"kr. 125"}]
[null,"2017-01-21","Kelly","Musikundervisning",{"v":250,"d":"kr. 250"}]
[null,"2017-02-20","Kelly","Parkering",{"v":20,"d":"kr. 20"}]
[null,"2017-02-25","Kelly","Elektronik",{"v":125,"d":"kr. 125"}]
[null,"2017-01-01","Mor","Brændstof",{"v":74,"d":"kr. 74"}]
[null,"2017-01-15","Mor","Mad",{"v":235,"d":"kr. 235"}]
[null,"2017-01-21","Mor","Klubkontingent",{"v":125,"d":"kr. 125"}]
[null,"2017-02-02","Mor","Mad",{"v":235,"d":"kr. 235"}]
[null,"2017-01-01","Mor","Sundhed",{"v":74,"d":"kr. 74"}]
[null,"2017-01-15","Mor","El",{"v":70,"d":"kr. 70"}]
[null,"2017-02-02","Mor","Tandlæge",{"v":235,"d":"kr. 235"}]
[null,"2017-01-01","Mor","Bilforsikring",{"v":74,"d":"kr. 74"}]
[null,"2017-01-15","Mor","Sygeforsikring",{"v":70,"d":"kr. 70"}]
[null,"2017-02-02","Mor","Indboforsikring",{"v":235,"d":"kr. 235"}]

{"sheet":"12","index":12,"n_rows":119,"n_cols":5,"rows_kept":119}
["Du kan også gøre noget andet end at lave ekstra brede pivottabeller: Du kan bruge et andet rækkefelt i stedet. ,Et andet rækkefelt vises indrykket under det første rækkefelt."]
["I dette eksempel er der en pivottabel i cellerne D8 til E32. Den viser Far, Kelly og Mor som de første rækkefelter i kolonne D. Derefter er købstyper nedenfor dem i form af sekundære rækkefelter med elementer såsom Sport, Flybilletter, Restaurant osv."]
["VÆRD AT VIDE\nEt andet rækkefelt skaber en lodretorienteret pivottabel i stedet for en vandret. Nogle personer synes, at lodrette pivottabeller er lettere at læse, fordi man ikke skal rulle så meget fra side til side."]
["EXCEL-JARGON\nNogle gange kalder folk et andet rækkefelt for et \"sekundært felt\"."]
["Hvis du vil fortsætte med dette selvstudium, skal du trykke på Ctrl+Page Down. Tryk på Ctrl+Page Up for at gå til det forrige ark."]
[]
[]
[{"$nulls":3},"Rækkemærkater","Sum af Beløb"]
[{"$nulls":3},"Far",{"v":2000,"d":"kr. 2,000"}]
[{"$nulls":3},"Flybilletter",{"v":500,"d":"kr. 500"}]
[{"$nulls":3},"Moms",{"v":500,"d":"kr. 500"}]
[{"$nulls":3},"Sport",{"v":1000,"d":"kr. 1,000"}]
[{"$nulls":3},"Kelly",{"v":935,"d":"kr. 935"}]
[{"$nulls":3},"Billetter",{"v":125,"d":"kr. 125"}]
[{"$nulls":3},"Bøger",{"v":250,"d":"kr. 250"}]
[{"$nulls":3},"Elektronik",{"v":125,"d":"kr. 125"}]
[{"$nulls":3},"Musik",{"v":20,"d":"kr. 20"}]
[{"$nulls":3},"Musikundervisning",{"v":250,"d":"kr. 250"}]
[{"$nulls":3},"Parkering",{"v":20,"d":"kr. 20"}]
[{"$nulls":3},"Restaurant",{"v":20,"d":"kr. 20"}]
[{"$nulls":3},"Tøj",{"v":125,"d":"kr. 125"}]
[{"$nulls":3},"Mor",{"v":1427,"d":"kr. 1,427"}]
[{"$nulls":3},"Bilforsikring",{"v":74,"d":"kr. 74"}]
[{"$nulls":3},"Brændstof",{"v":74,"d":"kr. 74"}]
[{"$nulls":3},"El",{"v":70,"d":"kr. 70"}]
[{"$nulls":3},"Indboforsikring",{"v":235,"d":"kr. 235"}]
[{"$nulls":3},"Klubkontingent",{"v":125,"d":"kr. 125"}]
[{"$nulls":3},"Mad",{"v":470,"d":"kr. 470"}]
[{"$nulls":3},"Sundhed",{"v":74,"d":"kr. 74"}]
[{"$nulls":3},"Sygeforsikring",{"v":70,"d":"kr. 70"}]
[{"$nulls":3},"Tandlæge",{"v":235,"d":"kr. 235"}]
[{"$nulls":3},"Hovedtotal",{"v":4362,"d":"kr. 4,362"}]
{"$rows_empty":65}
[null,"Dato","Køber","Type","Beløb"]
[null,"2017-01-17","Far","Sport",{"v":1000,"d":"kr. 1,000"}]
[null,"2017-01-17","Far","Flybilletter",{"v":500,"d":"kr. 500"}]
[null,"2017-01-17","Far","Moms",{"v":500,"d":"kr. 500"}]
[null,"2017-02-20","Kelly","Musik",{"v":20,"d":"kr. 20"}]
[null,"2017-02-25","Kelly","Billetter",{"v":125,"d":"kr. 125"}]
[null,"2017-01-21","Kelly","Bøger",{"v":250,"d":"kr. 250"}]
[null,"2017-02-20","Kelly","Restaurant",{"v":20,"d":"kr. 20"}]
[null,"2017-02-25","Kelly","Tøj",{"v":125,"d":"kr. 125"}]
[null,"2017-01-21","Kelly","Musikundervisning",{"v":250,"d":"kr. 250"}]
[null,"2017-02-20","Kelly","Parkering",{"v":20,"d":"kr. 20"}]
[null,"2017-02-25","Kelly","Elektronik",{"v":125,"d":"kr. 125"}]
[null,"2017-01-01","Mor","Brændstof",{"v":74,"d":"kr. 74"}]
[null,"2017-01-15","Mor","Mad",{"v":235,"d":"kr. 235"}]
[null,"2017-01-21","Mor","Klubkontingent",{"v":125,"d":"kr. 125"}]
[null,"2017-02-02","Mor","Mad",{"v":235,"d":"kr. 235"}]
[null,"2017-01-01","Mor","Sundhed",{"v":74,"d":"kr. 74"}]
[null,"2017-01-15","Mor","El",{"v":70,"d":"kr. 70"}]
[null,"2017-02-02","Mor","Tandlæge",{"v":235,"d":"kr. 235"}]
[null,"2017-01-01","Mor","Bilforsikring",{"v":74,"d":"kr. 74"}]
[null,"2017-01-15","Mor","Sygeforsikring",{"v":70,"d":"kr. 70"}]
[null,"2017-02-02","Mor","Indboforsikring",{"v":235,"d":"kr. 235"}]

{"sheet":"13","index":13,"n_rows":3,"n_cols":1,"rows_kept":3}
["På det næste ark skal du tilføje et andet rækkefelt. Og det gør du ved at placere feltet Type under feltet Køber i rækkefeltet."]
["Et billede af listen Pivottabelfelter viser en pilemarkør, der trækker feltet Type til området Rækker."]
["Hvis du vil fortsætte med dette selvstudium, skal du trykke på Ctrl+Page Down. Tryk på Ctrl+Page Up for at gå til det forrige ark."]

{"sheet":"14","index":14,"n_rows":122,"n_cols":9,"rows_kept":122}
["1. Pivottabelområdet i dette eksempel er i cellerne B13 til C17. Gå til en af disse celler. "]
["2. Tryk på ALT + JN, E for at åbne listen Pivottabelfelter. Som standard rettes fokus mod tekstfeltet Søg: \"Skriv ord at søge efter\" for at redigere. Skriv ikke noget. Tryk i stedet på Tab én gang. BEMÆRK! Hvis Feltlisten ikke starter, skal du trykke på ALT+JN, E igen."]
["3. Tryk på piletasterne for at gå til feltet Type. Tryk på mellemrumstasten for at føje feltet Type til rækkeområdet. "]
["4. Tryk på Esc for at afslutte ruden Pivottabelfelter. "]
["Hvis du vil fortsætte med dette selvstudium, skal du trykke på Ctrl+Page Down. Tryk på Ctrl+Page Up for at gå til det forrige ark.",{"$nulls":7},{"$f":"IF(AND($B$15=\"Flybilletter\",$C$36=235),\"Godt gået! Du har tilføjet\",\" \")","v":" "}]
[{"$nulls":8},{"$f":"IF(AND($B$15=\"Flybilletter\",$C$36=235),\"et andet rækkefelt til\",\" \")","v":" "}]
[{"$nulls":8},{"$f":"IF(AND($B$15=\"Flybilletter\",$C$36=235),\"pivottabellen. Rul ned, \",\" \")","v":" "}]
[{"$nulls":8},{"$f":"IF(AND($B$15=\"Flybilletter\",$C$36=235),\"og klik på Næste....\",\" \")","v":" "}]
[]
[]
[]
[]
[null,"Rækkemærkater","Sum af Beløb"]
[null,"Far",{"v":2000,"d":"kr. 2,000"}]
[null,"Kelly",{"v":935,"d":"kr. 935"}]
[null,"Mor",{"v":1427,"d":"kr. 1,427"}]
[null,"Hovedtotal",{"v":4362,"d":"kr. 4,362"}]
{"$rows_empty":83}
[null,"Dato","Køber","Type","Beløb"]
[null,"2017-01-17","Far","Sport",{"v":1000,"d":"kr. 1,000"}]
[null,"2017-01-17","Far","Flybilletter",{"v":500,"d":"kr. 500"}]
[null,"2017-01-17","Far","Moms",{"v":500,"d":"kr. 500"}]
[null,"2017-02-20","Kelly","Musik",{"v":20,"d":"kr. 20"}]
[null,"2017-02-25","Kelly","Billetter",{"v":125,"d":"kr. 125"}]
[null,"2017-01-21","Kelly","Bøger",{"v":250,"d":"kr. 250"}]
[null,"2017-02-20","Kelly","Restaurant",{"v":20,"d":"kr. 20"}]
[null,"2017-02-25","Kelly","Tøj",{"v":125,"d":"kr. 125"}]
[null,"2017-01-21","Kelly","Musikundervisning",{"v":250,"d":"kr. 250"}]
[null,"2017-02-20","Kelly","Parkering",{"v":20,"d":"kr. 20"}]
[null,"2017-02-25","Kelly","Elektronik",{"v":125,"d":"kr. 125"}]
[null,"2017-01-01","Mor","Brændstof",{"v":74,"d":"kr. 74"}]
[null,"2017-01-15","Mor","Mad",{"v":235,"d":"kr. 235"}]
[null,"2017-01-21","Mor","Klubkontingent",{"v":125,"d":"kr. 125"}]
[null,"2017-02-02","Mor","Mad",{"v":235,"d":"kr. 235"}]
[null,"2017-01-01","Mor","Sundhed",{"v":74,"d":"kr. 74"}]
[null,"2017-01-15","Mor","El",{"v":70,"d":"kr. 70"}]
[null,"2017-02-02","Mor","Tandlæge",{"v":235,"d":"kr. 235"}]
[null,"2017-01-01","Mor","Bilforsikring",{"v":74,"d":"kr. 74"}]
[null,"2017-01-15","Mor","Sygeforsikring",{"v":70,"d":"kr. 70"}]
[null,"2017-02-02","Mor","Indboforsikring",{"v":235,"d":"kr. 235"}]

{"sheet":"15","index":15,"n_rows":121,"n_cols":7,"rows_kept":121}
["Hvis du vil forenkle pivottabel, kan du skjule dataene for det andet rækkefelt \"sammen\" og få dem til at være ude af syne. "]
["Pivottabellen i dette eksempel er i cellerne F7 til G31. Markér celle F8 for at vælge det første rækkefelt til Far. Derefter skal du trykke på Alt+JN > U for at udvide det andet felt eller S for at skjule det."]
["Hvis du vil fortsætte med dette selvstudium, skal du trykke på CTRL+PAGE DOWN. Tryk på Ctrl+Page Up for at gå til det forrige ark."]
[]
[]
[{"$nulls":5},{"$f":"IF(AND($F$9=\"Kelly\",$G$9=935),\"Sådan!\",\" \")","v":" "}]
[{"$nulls":5},"Rækkemærkater","Sum af Beløb"]
[{"$nulls":5},"Far",{"v":2000,"d":"kr. 2,000"}]
[{"$nulls":5},"Flybilletter",{"v":500,"d":"kr. 500"}]
[{"$nulls":5},"Moms",{"v":500,"d":"kr. 500"}]
[{"$nulls":5},"Sport",{"v":1000,"d":"kr. 1,000"}]
[{"$nulls":5},"Kelly",{"v":935,"d":"kr. 935"}]
[{"$nulls":5},"Billetter",{"v":125,"d":"kr. 125"}]
[{"$nulls":5},"Bøger",{"v":250,"d":"kr. 250"}]
[{"$nulls":5},"Elektronik",{"v":125,"d":"kr. 125"}]
[{"$nulls":5},"Musik",{"v":20,"d":"kr. 20"}]
[{"$nulls":5},"Musikundervisning",{"v":250,"d":"kr. 250"}]
[{"$nulls":5},"Parkering",{"v":20,"d":"kr. 20"}]
[{"$nulls":5},"Restaurant",{"v":20,"d":"kr. 20"}]
[{"$nulls":5},"Tøj",{"v":125,"d":"kr. 125"}]
[{"$nulls":5},"Mor",{"v":1427,"d":"kr. 1,427"}]
[{"$nulls":5},"Bilforsikring",{"v":74,"d":"kr. 74"}]
[{"$nulls":5},"Brændstof",{"v":74,"d":"kr. 74"}]
[{"$nulls":5},"El",{"v":70,"d":"kr. 70"}]
[{"$nulls":5},"Indboforsikring",{"v":235,"d":"kr. 235"}]
[{"$nulls":5},"Klubkontingent",{"v":125,"d":"kr. 125"}]
[{"$nulls":5},"Mad",{"v":470,"d":"kr. 470"}]
[{"$nulls":5},"Sundhed",{"v":74,"d":"kr. 74"}]
[{"$nulls":5},"Sygeforsikring",{"v":70,"d":"kr. 70"}]
[{"$nulls":5},"Tandlæge",{"v":235,"d":"kr. 235"}]
[{"$nulls":5},"Hovedtotal",{"v":4362,"d":"kr. 4,362"}]
{"$rows_empty":68}
[null,"Dato","Køber","Type","Beløb"]
[null,"2017-01-17","Far","Sport",{"v":1000,"d":"kr. 1,000"}]
[null,"2017-01-17","Far","Flybilletter",{"v":500,"d":"kr. 500"}]
[null,"2017-01-17","Far","Moms",{"v":500,"d":"kr. 500"}]
[null,"2017-02-20","Kelly","Musik",{"v":20,"d":"kr. 20"}]
[null,"2017-02-25","Kelly","Billetter",{"v":125,"d":"kr. 125"}]
[null,"2017-01-21","Kelly","Bøger",{"v":250,"d":"kr. 250"}]
[null,"2017-02-20","Kelly","Restaurant",{"v":20,"d":"kr. 20"}]
[null,"2017-02-25","Kelly","Tøj",{"v":125,"d":"kr. 125"}]
[null,"2017-01-21","Kelly","Musikundervisning",{"v":250,"d":"kr. 250"}]
[null,"2017-02-20","Kelly","Parkering",{"v":20,"d":"kr. 20"}]
[null,"2017-02-25","Kelly","Elektronik",{"v":125,"d":"kr. 125"}]
[null,"2017-01-01","Mor","Brændstof",{"v":74,"d":"kr. 74"}]
[null,"2017-01-15","Mor","Mad",{"v":235,"d":"kr. 235"}]
[null,"2017-01-21","Mor","Klubkontingent",{"v":125,"d":"kr. 125"}]
[null,"2017-02-02","Mor","Mad",{"v":235,"d":"kr. 235"}]
[null,"2017-01-01","Mor","Sundhed",{"v":74,"d":"kr. 74"}]
[null,"2017-01-15","Mor","El",{"v":70,"d":"kr. 70"}]
[null,"2017-02-02","Mor","Tandlæge",{"v":235,"d":"kr. 235"}]
[null,"2017-01-01","Mor","Bilforsikring",{"v":74,"d":"kr. 74"}]
[null,"2017-01-15","Mor","Sygeforsikring",{"v":70,"d":"kr. 70"}]
[null,"2017-02-02","Mor","Indboforsikring",{"v":235,"d":"kr. 235"}]

{"sheet":"16","index":16,"n_rows":121,"n_cols":7,"rows_kept":121}
["Du kan også skjule eller udvide hele det andet rækkefelt for at forenkle pivottabel endnu mere."]
["Her er det vigtigste"]
["Markér dataområdet for pivottabel fra celle F7 til G31, og gå derefter til Alt+JN > S for at skjule hele gruppen. I øvrigt får Alt+JN > U gruppen til at blive udvidet."]
["Hvis du vil fortsætte med dette selvstudium, skal du trykke på Ctrl+Page Down. Tryk på Ctrl+Page Up for at gå til det forrige ark."]
[]
[{"$nulls":5},{"$f":"IF(AND($F$9=\"Kelly\",$G$9=935),\"Smukt!\",\" \")","v":" "}]
[{"$nulls":5},"Rækkemærkater","Sum af Beløb"]
[{"$nulls":5},"Far",{"v":2000,"d":"kr. 2,000"}]
[{"$nulls":5},"Flybilletter",{"v":500,"d":"kr. 500"}]
[{"$nulls":5},"Moms",{"v":500,"d":"kr. 500"}]
[{"$nulls":5},"Sport",{"v":1000,"d":"kr. 1,000"}]
[{"$nulls":5},"Kelly",{"v":935,"d":"kr. 935"}]
[{"$nulls":5},"Billetter",{"v":125,"d":"kr. 125"}]
[{"$nulls":5},"Bøger",{"v":250,"d":"kr. 250"}]
[{"$nulls":5},"Elektronik",{"v":125,"d":"kr. 125"}]
[{"$nulls":5},"Musik",{"v":20,"d":"kr. 20"}]
[{"$nulls":5},"Musikundervisning",{"v":250,"d":"kr. 250"}]
[{"$nulls":5},"Parkering",{"v":20,"d":"kr. 20"}]
[{"$nulls":5},"Restaurant",{"v":20,"d":"kr. 20"}]
[{"$nulls":5},"Tøj",{"v":125,"d":"kr. 125"}]
[{"$nulls":5},"Mor",{"v":1427,"d":"kr. 1,427"}]
[{"$nulls":5},"Bilforsikring",{"v":74,"d":"kr. 74"}]
[{"$nulls":5},"Brændstof",{"v":74,"d":"kr. 74"}]
[{"$nulls":5},"El",{"v":70,"d":"kr. 70"}]
[{"$nulls":5},"Indboforsikring",{"v":235,"d":"kr. 235"}]
[{"$nulls":5},"Klubkontingent",{"v":125,"d":"kr. 125"}]
[{"$nulls":5},"Mad",{"v":470,"d":"kr. 470"}]
[{"$nulls":5},"Sundhed",{"v":74,"d":"kr. 74"}]
[{"$nulls":5},"Sygeforsikring",{"v":70,"d":"kr. 70"}]
[{"$nulls":5},"Tandlæge",{"v":235,"d":"kr. 235"}]
[{"$nulls":5},"Hovedtotal",{"v":4362,"d":"kr. 4,362"}]
{"$rows_empty":68}
[null,"Dato","Køber","Type","Beløb"]
[null,"2017-01-17","Far","Sport",{"v":1000,"d":"kr. 1,000"}]
[null,"2017-01-17","Far","Flybilletter",{"v":500,"d":"kr. 500"}]
[null,"2017-01-17","Far","Moms",{"v":500,"d":"kr. 500"}]
[null,"2017-02-20","Kelly","Musik",{"v":20,"d":"kr. 20"}]
[null,"2017-02-25","Kelly","Billetter",{"v":125,"d":"kr. 125"}]
[null,"2017-01-21","Kelly","Bøger",{"v":250,"d":"kr. 250"}]
[null,"2017-02-20","Kelly","Restaurant",{"v":20,"d":"kr. 20"}]
[null,"2017-02-25","Kelly","Tøj",{"v":125,"d":"kr. 125"}]
[null,"2017-01-21","Kelly","Musikundervisning",{"v":250,"d":"kr. 250"}]
[null,"2017-02-20","Kelly","Parkering",{"v":20,"d":"kr. 20"}]
[null,"2017-02-25","Kelly","Elektronik",{"v":125,"d":"kr. 125"}]
[null,"2017-01-01","Mor","Brændstof",{"v":74,"d":"kr. 74"}]
[null,"2017-01-15","Mor","Mad",{"v":235,"d":"kr. 235"}]
[null,"2017-01-21","Mor","Klubkontingent",{"v":125,"d":"kr. 125"}]
[null,"2017-02-02","Mor","Mad",{"v":235,"d":"kr. 235"}]
[null,"2017-01-01","Mor","Sundhed",{"v":74,"d":"kr. 74"}]
[null,"2017-01-15","Mor","El",{"v":70,"d":"kr. 70"}]
[null,"2017-02-02","Mor","Tandlæge",{"v":235,"d":"kr. 235"}]
[null,"2017-01-01","Mor","Bilforsikring",{"v":74,"d":"kr. 74"}]
[null,"2017-01-15","Mor","Sygeforsikring",{"v":70,"d":"kr. 70"}]
[null,"2017-02-02","Mor","Indboforsikring",{"v":235,"d":"kr. 235"}]

{"sheet":"17","index":17,"n_rows":107,"n_cols":13,"rows_kept":107}
["Du kan også have mere end ét kolonnefelt. De kan også være skjulte eller udvidede."]
["I dette eksempel går pivottabellen fra cellerne B13 til M19. I dette tilfælde har vi en Type-kategori i sektionen Kolonner, som omfatter elementer for Mad og Forsyning."]
["PRØV DET HER\nVælg Mad i celle C14, og gå til Alt+JN > S for at skjule hele feltet. Alt+JN > U kan udvide den."]
["Hvis du vil fortsætte med dette selvstudium, skal du trykke på Ctrl+Page Down. Tryk på Ctrl+Page Up for at gå til det forrige ark."]
{"$rows_empty":7}
[null,null,{"$f":"IF(AND($C$16=398,$D$15=\"Jan\"),\"Flot!\",\" \")","v":" "}]
[null,"Sum af Beløb","Kolonnemærkater"]
[null,null,"Mad",{"$nulls":3},"Mad Total","Forsyning",{"$nulls":3},"Forsyning Total","Hovedtotal"]
[null,"Rækkemærkater","Jan","Feb","Mar","Apr",null,"Jan","Feb","Mar","Apr"]
[null,"Kelly",{"v":74,"d":"kr. 74"},{"v":74,"d":"kr. 74"},{"v":125,"d":"kr. 125"},{"v":125,"d":"kr. 125"},{"v":398,"d":"kr. 398"},{"$nulls":5},{"v":398,"d":"kr. 398"}]
[null,"Far",{"v":235,"d":"kr. 235"},{"v":235,"d":"kr. 235"},{"v":235,"d":"kr. 235"},{"v":74,"d":"kr. 74"},{"v":779,"d":"kr. 779"},{"$nulls":5},{"v":779,"d":"kr. 779"}]
[null,"Mor",{"$nulls":5},{"v":1000,"d":"kr. 1,000"},{"v":1000,"d":"kr. 1,000"},{"v":20,"d":"kr. 20"},{"v":70,"d":"kr. 70"},{"v":2090,"d":"kr. 2,090"},{"v":2090,"d":"kr. 2,090"}]
[null,"Hovedtotal",{"v":309,"d":"kr. 309"},{"v":309,"d":"kr. 309"},{"v":360,"d":"kr. 360"},{"v":199,"d":"kr. 199"},{"v":1177,"d":"kr. 1,177"},{"v":1000,"d":"kr. 1,000"},{"v":1000,"d":"kr. 1,000"},{"v":20,"d":"kr. 20"},{"v":70,"d":"kr. 70"},{"v":2090,"d":"kr. 2,090"},{"v":3267,"d":"kr. 3,267"}]
{"$rows_empty":75}
[null,"Måned","Køber","Type","Beløb"]
[null,"Jan","Kelly","Mad",{"v":74,"d":"kr. 74"}]
[null,"Jan","Far","Mad",{"v":235,"d":"kr. 235"}]
[null,"Jan","Mor","Forsyning",{"v":1000,"d":"kr. 1,000"}]
[null,"Feb","Kelly","Mad",{"v":74,"d":"kr. 74"}]
[null,"Feb","Far","Mad",{"v":235,"d":"kr. 235"}]
[null,"Feb","Mor","Forsyning",{"v":1000,"d":"kr. 1,000"}]
[null,"Mar","Kelly","Mad",{"v":125,"d":"kr. 125"}]
[null,"Mar","Far","Mad",{"v":235,"d":"kr. 235"}]
[null,"Mar","Mor","Forsyning",{"v":20,"d":"kr. 20"}]
[null,"Apr","Kelly","Mad",{"v":125,"d":"kr. 125"}]
[null,"Apr","Far","Mad",{"v":74,"d":"kr. 74"}]
[null,"Apr","Mor","Forsyning",{"v":70,"d":"kr. 70"}]

{"sheet":"18","index":18,"n_rows":146,"n_cols":5,"rows_kept":146}
["Noget at huske på: Hvis du har brug for flere oplysninger, er det muligt at tilføje mange flere rækkefelter eller kolonnefelter. I dette eksempel er der tre rækkefelter."]
["Pivottabellen i dette eksempel går fra celle D8 til E29, og den har felter for Årstid, Køber og Type i kolonne D med Sum af Beløb i kolonne E."]
["EKSPERTTIP\nDet, at du kan tilføje masser af felter, er ikke ensbetydende med, at det er smart altid at gøre det. I dette eksempel fungerer det fint. Men nogle gange kan for mange felter og de indrykninger, der følger med dem, gøre pivottabellen for kompliceret at forstå for andre. "]
["Hvis du vil fortsætte med dette selvstudium, skal du trykke på Ctrl+Page Down. Tryk på Ctrl+Page Up for at gå til det forrige ark."]
[]
[]
[]
[{"$nulls":3},"Rækkemærkater","Sum af Beløb"]
[{"$nulls":3},"Efterår",{"v":5425,"d":"kr. 5,425"}]
[{"$nulls":3},"Mor",{"v":5425,"d":"kr. 5,425"}]
[{"$nulls":3},"El, vand og varme",{"v":403,"d":"kr. 403"}]
[{"$nulls":3},"Forsikring",{"v":1272,"d":"kr. 1,272"}]
[{"$nulls":3},"Forsyning",{"v":530,"d":"kr. 530"}]
[{"$nulls":3},"Husleje",{"v":3220,"d":"kr. 3,220"}]
[{"$nulls":3},"Forår",{"v":4760,"d":"kr. 4,760"}]
[{"$nulls":3},"Far",{"v":4760,"d":"kr. 4,760"}]
[{"$nulls":3},"Forsikring",{"v":1040,"d":"kr. 1,040"}]
[{"$nulls":3},"Forsyning",{"v":1320,"d":"kr. 1,320"}]
[{"$nulls":3},"Husleje",{"v":2400,"d":"kr. 2,400"}]
[{"$nulls":3},"Sommer",{"v":3473,"d":"kr. 3,473"}]
[{"$nulls":3},"Mor",{"v":3473,"d":"kr. 3,473"}]
[{"$nulls":3},"Forsikring",{"v":1080,"d":"kr. 1,080"}]
[{"$nulls":3},"Forsyning",{"v":1133,"d":"kr. 1,133"}]
[{"$nulls":3},"Husleje",{"v":1260,"d":"kr. 1,260"}]
[{"$nulls":3},"Vinter",{"v":4100,"d":"kr. 4,100"}]
[{"$nulls":3},"Far",{"v":4100,"d":"kr. 4,100"}]
[{"$nulls":3},"Forsikring",{"v":1030,"d":"kr. 1,030"}]
[{"$nulls":3},"Forsyning",{"v":1650,"d":"kr. 1,650"}]
[{"$nulls":3},"Husleje",{"v":1420,"d":"kr. 1,420"}]
[{"$nulls":3},"Hovedtotal",{"v":17758,"d":"kr. 17,758"}]
{"$rows_empty":67}
[null,"Køber","Årstid","Type","Beløb"]
[null,"Far","Vinter","Forsikring",{"v":300,"d":"kr. 300"}]
[null,"Far","Vinter","Husleje",{"v":200,"d":"kr. 200"}]
[null,"Far","Vinter","Forsyning",{"v":400,"d":"kr. 400"}]
[null,"Far","Vinter","Forsikring",{"v":300,"d":"kr. 300"}]
[null,"Far","Vinter","Husleje",{"v":800,"d":"kr. 800"}]
[null,"Far","Vinter","Forsyning",{"v":400,"d":"kr. 400"}]
[null,"Far","Vinter","Forsikring",{"v":200,"d":"kr. 200"}]
[null,"Far","Vinter","Husleje",{"v":300,"d":"kr. 300"}]
[null,"Far","Vinter","Forsyning",{"v":450,"d":"kr. 450"}]
[null,"Far","Vinter","Forsikring",{"v":230,"d":"kr. 230"}]
[null,"Far","Vinter","Husleje",{"v":120,"d":"kr. 120"}]
[null,"Far","Vinter","Forsyning",{"v":400,"d":"kr. 400"}]
[null,"Far","Forår","Forsikring",{"v":210,"d":"kr. 210"}]
[null,"Far","Forår","Husleje",{"v":300,"d":"kr. 300"}]
[null,"Far","Forår","Forsyning",{"v":400,"d":"kr. 400"}]
[null,"Far","Forår","Forsikring",{"v":230,"d":"kr. 230"}]
[null,"Far","Forår","Husleje",{"v":900,"d":"kr. 900"}]
[null,"Far","Forår","Forsyning",{"v":300,"d":"kr. 300"}]
[null,"Far","Forår","Forsikring",{"v":200,"d":"kr. 200"}]
[null,"Far","Forår","Husleje",{"v":1000,"d":"kr. 1,000"}]
[null,"Far","Forår","Forsyning",{"v":220,"d":"kr. 220"}]
[null,"Far","Forår","Forsikring",{"v":400,"d":"kr. 400"}]
[null,"Far","Forår","Husleje",{"v":200,"d":"kr. 200"}]
[null,"Far","Forår","Forsyning",{"v":400,"d":"kr. 400"}]
[null,"Mor","Sommer","Forsikring",{"v":100,"d":"kr. 100"}]
[null,"Mor","Sommer","Husleje",{"v":30,"d":"kr. 30"}]
[null,"Mor","Sommer","Forsyning",{"v":123,"d":"kr. 123"}]
[null,"Mor","Sommer","Forsikring",{"v":300,"d":"kr. 300"}]
[null,"Mor","Sommer","Husleje",{"v":350,"d":"kr. 350"}]
[null,"Mor","Sommer","Forsyning",{"v":230,"d":"kr. 230"}]
[null,"Mor","Sommer","Forsikring",{"v":120,"d":"kr. 120"}]
[null,"Mor","Sommer","Husleje",{"v":640,"d":"kr. 640"}]
[null,"Mor","Sommer","Forsyning",{"v":530,"d":"kr. 530"}]
[null,"Mor","Sommer","Forsikring",{"v":560,"d":"kr. 560"}]
[null,"Mor","Sommer","Husleje",{"v":240,"d":"kr. 240"}]
[null,"Mor","Sommer","Forsyning",{"v":250,"d":"kr. 250"}]
[null,"Mor","Efterår","Forsikring",{"v":62,"d":"kr. 62"}]
[null,"Mor","Efterår","Husleje",{"v":600,"d":"kr. 600"}]
[null,"Mor","Efterår","Forsyning",{"v":340,"d":"kr. 340"}]
[null,"Mor","Efterår","Forsikring",{"v":205,"d":"kr. 205"}]
[null,"Mor","Efterår","Husleje",{"v":500,"d":"kr. 500"}]
[null,"Mor","Efterår","El, vand og varme",{"v":403,"d":"kr. 403"}]
[null,"Mor","Efterår","Forsikring",{"v":503,"d":"kr. 503"}]
[null,"Mor","Efterår","Husleje",{"v":2000,"d":"kr. 2,000"}]
[null,"Mor","Efterår","Forsyning",{"v":140,"d":"kr. 140"}]
[null,"Mor","Efterår","Forsikring",{"v":502,"d":"kr. 502"}]
[null,"Mor","Efterår","Husleje",{"v":120,"d":"kr. 120"}]
[null,"Mor","Efterår","Forsyning",{"v":50,"d":"kr. 50"}]

{"sheet":"19","index":19,"n_rows":55,"n_cols":5,"rows_kept":55}
["Er du klar til flere øvelser? Grib muligheden for at gennemgå data i cellerne B7 til E55 nedenfor. Når du er klar, skal du gå til det næste ark. Så kan du øve dig i det, du har lært indtil videre. "]
["Du behøver ikke at gennemgå alle rækkerne af data. Gennemgå bare feltnavnene i række 7. Det er dem, du skal arbejde med på næste ark. "]
["Hvis du vil fortsætte med dette selvstudium, skal du trykke på Ctrl+Page Down. Tryk på Ctrl+Page Up for at gå til det forrige ark."]
[]
[]
[]
[null,"Årstid","Sælger","Produkt","Antal solgte enheder"]
[null,"Vinter","Jenny","Appelsiner",300]
[null,"Vinter","George","Grapefrugter",200]
[null,"Vinter","Dave","Æbler",400]
[null,"Vinter","Jenny","Bananer",300]
[null,"Vinter","George","Appelsiner",800]
[null,"Vinter","Dave","Grapefrugter",400]
[null,"Vinter","Jenny","Æbler",200]
[null,"Vinter","George","Bananer",300]
[null,"Vinter","Dave","Appelsiner",450]
[null,"Vinter","Jenny","Grapefrugter",230]
[null,"Vinter","George","Æbler",120]
[null,"Vinter","Dave","Bananer",400]
[null,"Forår","Jenny","Roer",210]
[null,"Forår","George","Kartofler",300]
[null,"Forår","Dave","Salat",400]
[null,"Forår","Jenny","Radiser",230]
[null,"Forår","George","Roer",900]
[null,"Forår","Dave","Kartofler",300]
[null,"Forår","Jenny","Salat",200]
[null,"Forår","George","Radiser",{"v":1000,"d":"1,000"}]
[null,"Forår","Dave","Roer",220]
[null,"Forår","Jenny","Kartofler",400]
[null,"Forår","George","Salat",200]
[null,"Forår","Dave","Radiser",400]
[null,"Sommer","Jenny","Blåbær",100]
[null,"Sommer","George","Jordbær",30]
[null,"Sommer","Dave","Druer",123]
[null,"Sommer","Jenny","Græskar",300]
[null,"Sommer","George","Blåbær",350]
[null,"Sommer","Dave","Jordbær",230]
[null,"Sommer","Jenny","Druer",120]
[null,"Sommer","George","Græskar",640]
[null,"Sommer","Dave","Blåbær",530]
[null,"Sommer","Jenny","Jordbær",560]
[null,"Sommer","George","Druer",240]
[null,"Sommer","Dave","Græskar",250]
[null,"Efterår","Jenny","Squash",62]
[null,"Efterår","George","Courgette",600]
[null,"Efterår","Dave","Æbler",340]
[null,"Efterår","Jenny","Appelsiner",205]
[null,"Efterår","George","Squash",500]
[null,"Efterår","Dave","Courgette",403]
[null,"Efterår","Jenny","Æbler",503]
[null,"Efterår","George","Appelsiner",{"v":2000,"d":"2,000"}]
[null,"Efterår","Dave","Squash",140]
[null,"Efterår","Jenny","Courgette",502]
[null,"Efterår","George","Æbler",120]
[null,"Efterår","Dave","Appelsiner",50]

{"sheet":"20","index":20,"n_rows":17,"n_cols":8,"rows_kept":17}
["1. Pivottabelområdet i dette eksempel er i cellerne B12 til C17. Gå til en af disse celler. \n\n"]
["2. Tryk på ALT + JN, E for at åbne listen Pivottabelfelter. Som standard rettes fokus mod tekstfeltet Søg: \"Skriv ord at søge efter\" for at redigere. Skriv ikke noget. Tryk i stedet på Tab én gang. BEMÆRK! Hvis Feltlisten ikke starter, skal du trykke på ALT+JN, E igen."]
["3. Tryk på piletasterne for at gå til feltet Sælger. Tryk på mellemrumstasten for at føje feltet Sælger til rækkeområdet. Hvis du vil have vist oplysninger om Sælger i kolonner, kan du bruge Tab-tasten til at gå til feltet Sælger i rækkesektionen, derefter trykke på mellemrumstasten og vælge \"Flyt til kolonnemærkater\". Tryk på Esc for at afslutte ruden Pivottabelfelter. "]
["4. Fastlæg, hvem der solgte de fleste elementer i efteråret, og foretag derefter valg i celle H8. "]
["Hvis du vil fortsætte med dette selvstudium, skal du trykke på Ctrl+Page Down. Tryk på Ctrl+Page Up for at gå til det forrige ark."]
[]
[{"$nulls":7},"Vælg én:"]
[]
[{"$nulls":7},{"$f":"IF($H$8=\"George\",\"Det er rigtigt!\",IF($H$8=\"Dave\",\"Prøv igen...\",IF($H$8=\"Jenny\",\"Ikke helt rigtigt...\",IF($H$8=\" \",\" \",\" \"))))","v":" "}]
[]
[]
[null,"Rækkemærkater","Sum af Antal solgte enheder"]
[null,"Efterår",{"v":5425,"d":"5,425"}]
[null,"Forår",{"v":4760,"d":"4,760"}]
[null,"Sommer",{"v":3473,"d":"3,473"}]
[null,"Vinter",{"v":4100,"d":"4,100"}]
[null,"Hovedtotal",{"v":17758,"d":"17,758"}]

{"sheet":"21","index":21,"n_rows":14,"n_cols":10,"rows_kept":14}
["1. Klik i celle B13 for aktivere pivottabellen kaldet \"Sum af Antal solgte enheder\".\n\n"]
["2. Tryk på ALT + JN, E for at åbne listen Pivottabelfelter. Som standard rettes fokus mod tekstfeltet Søg: \"Skriv ord at søge efter\" for at redigere. Skriv ikke noget. Tryk i stedet på Tab én gang. BEMÆRK! Hvis Feltlisten ikke starter, skal du trykke på ALT+JN, E igen."]
["3. Brug piletasterne og mellemrumstasten til at udvide eksemplet til en lodret pivottabel med årstid til venstre og sælger indrykket under årstid. Tryk på Esc for at forlade ruden Pivottabelfelter. "]
["Hvis du vil fortsætte med dette selvstudium, skal du trykke på Ctrl+Page Down. Tryk på Ctrl+Page Up for at gå til det forrige ark."]
[{"$nulls":9},{"$f":"IF(AND(B$14=\"Efterår\",$C$17=1272),\"Godt arbejde! Du placerede\",\" \")","v":" "}]
[{"$nulls":9},{"$f":"IF(AND(B$14=\"Efterår\",$C$17=1272),\"et sekundært rækkefelt. Rul\",\" \")","v":" "}]
[{"$nulls":9},{"$f":"IF(AND(B$14=\"Efterår\",$C$17=1272),\"nu ned, og klik på Næste.\",\" \")","v":" "}]
[]
[]
[]
[]
[]
[null,"Sum af Antal solgte enheder"]
[null,{"v":17758,"d":"17,758"}]

{"sheet":"22","index":22,"n_rows":14,"n_cols":10,"rows_kept":14}
["1. Klik i celle B13 for aktivere pivottabellen kaldet \"Sum af Antal solgte enheder\"."]
["2. Tryk på ALT + JN, E for at åbne listen Pivottabelfelter. Som standard rettes fokus mod tekstfeltet Søg: \"Skriv ord at søge efter\" for at redigere. Skriv ikke noget. Tryk i stedet på Tab én gang. BEMÆRK! Hvis Feltlisten ikke starter, skal du trykke på ALT+JN, E igen."]
["3. Brug piletasterne og mellemrumstasten til at ændre eksemplet, så hvert produkt vises i sin egen række og hver årstid i sin egen kolonne."]
["Hvis du vil fortsætte med dette selvstudium, skal du trykke på Ctrl+Page Down. Tryk på Ctrl+Page Up for at gå til det forrige ark.",{"$nulls":8},{"$f":"IF(AND($B$15=\"Appelsiner\",$G$28=1683),\"Godt arbejde! Du har\",\" \")","v":" "}]
[{"$nulls":9},{"$f":"IF(AND($B$15=\"Appelsiner\",$G$28=1683),\"placeret et rækkefelt\",\" \")","v":" "}]
[{"$nulls":9},{"$f":"IF(AND($B$15=\"Appelsiner\",$G$28=1683),\"til venstre og en kolonnefelt\",\" \")","v":" "}]
[{"$nulls":9},{"$f":"IF(AND($B$15=\"Appelsiner\",$G$28=1683),\"med fire nye kolonner.\",\" \")","v":" "}]
[{"$nulls":9},{"$f":"IF(AND($B$15=\"Appelsiner\",$G$28=1683),\"Rul ned, og klik på Næste...\",\" \")","v":" "}]
[]
[]
[]
[]
[null,"Sum af Antal solgte enheder"]
[null,{"v":17758,"d":"17,758"}]

{"sheet":"23","index":23,"n_rows":16,"n_cols":18,"rows_kept":16}
["1. Klik i celle B13 for aktivere pivottabellen kaldet \"Sum af Antal solgte enheder\".\n\n"]
["2. Tryk på ALT + JN, E for at åbne listen Pivottabelfelter. Som standard rettes fokus mod tekstfeltet Søg: \"Skriv ord at søge efter\" for at redigere. Skriv ikke noget. Tryk i stedet på Tab én gang. BEMÆRK! Hvis Feltlisten ikke starter, skal du trykke på ALT+JN, E igen."]
["3. Brug Tab-tasten, piletasterne og mellemrumstasten for at ændre eksemplet, så sælgere vises i venstre side med Årstider indrykket nedenfor dem."]
["Hvis du vil fortsætte med dette selvstudium, skal du trykke på Ctrl+Page Down. Tryk på Ctrl+Page Up for at gå til det forrige ark."]
[{"$nulls":9},{"$f":"IF(AND($B$14=\"Dave\",$C$14=5036),\"Godt arbejde! Nu er dataene\",\" \")","v":" "}]
[{"$nulls":9},{"$f":"IF(AND($B$14=\"Dave\",$C$14=5036),\"lettere at læse. Rul ned,\",\" \")","v":" "}]
[{"$nulls":9},{"$f":"IF(AND($B$14=\"Dave\",$C$14=5036),\"og klik på Næste....\",\" \")","v":" "}]
[]
[]
[]
[]
[]
[null,null,"Kolonnemærkater"]
[null,null,"Dave",{"$nulls":3},"Dave Total","George",{"$nulls":3},"George Total","Jenny",{"$nulls":3},"Jenny Total","Hovedtotal"]
[null,null,"Efterår","Forår","Sommer","Vinter",null,"Efterår","Forår","Sommer","Vinter",null,"Efterår","Forår","Sommer","Vinter"]
[null,"Sum af Antal solgte enheder",933,{"v":1320,"d":"1,320"},{"v":1133,"d":"1,133"},{"v":1650,"d":"1,650"},{"v":5036,"d":"5,036"},{"v":3220,"d":"3,220"},{"v":2400,"d":"2,400"},{"v":1260,"d":"1,260"},{"v":1420,"d":"1,420"},{"v":8300,"d":"8,300"},{"v":1272,"d":"1,272"},{"v":1040,"d":"1,040"},{"v":1080,"d":"1,080"},{"v":1030,"d":"1,030"},{"v":4422,"d":"4,422"},{"v":17758,"d":"17,758"}]

{"sheet":"24","index":24,"n_rows":14,"n_cols":8,"rows_kept":14}
["1. Klik i celle B13 for aktivere pivottabellen kaldet \"Sum af Antal solgte enheder\"."]
["2. Tryk på ALT + JN, E for at åbne listen Pivottabelfelter. Som standard rettes fokus mod tekstfeltet Søg: \"Skriv ord at søge efter\" for at redigere. Skriv ikke noget. Tryk i stedet på Tab én gang. BEMÆRK! Hvis Feltlisten ikke starter, skal du trykke på ALT+JN, E igen."]
["3. Brug Tab-tasten, piletasterne og mellemrumstasten for at ændre eksemplet, så hver sælger har sit eget kolonnefelt med Årstider til venstre og Produkter indrykket nedenfor dem."]
["4. Markér celle I9, og vælg, hvor mange grapefrugter Dave solgte i vinters."]
["Hvis du vil fortsætte med dette selvstudium, skal du trykke på Ctrl+Page Down. Tryk på Ctrl+Page Up for at gå til det forrige ark."]
[]
[]
[{"$nulls":7},"Vælg én:"]
[]
[{"$nulls":7},{"$f":"IF($H$9=400,\"Det er rigtigt!\",IF($H$9=530,\"Prøv igen...\",IF($H$9=123,\"Ikke helt rigtigt...\",\" \")))","v":" "}]
[]
[]
[null,"Sum af Antal solgte enheder"]
[null,{"v":17758,"d":"17,758"}]

{"sheet":"Få mere at vide","index":25,"n_rows":8,"n_cols":1,"rows_kept":8}
["Godt arbejde! Er pivottabeller ikke bare smarte?"]
["Men vi vil gerne opfordre dig til at fortsætte. Der er mere at opdage..."]
["Flere oplysninger om pivot\nOpdag flere ting, du kan gøre, ved at læse denne nyttige artikel om pivottabeller."]
["Om opdater\nLæs denne vigtige artikel om, hvordan du opdaterer pivottabeller. "]
["Community\nOpret forbindelse til andre Excel-tilhængere. De kan hjælpe dig, og du kan hjælpe dem."]
[]
[]
[" "]